[Event "Titled Tuesday Blitz October 31 Early 2023"]
[White "Jakubowski, Krzysztof"]
[Black "Topalov, Aleksandar"]
[WhiteFideId "1112848"]
[BlackFideId "925659"]
[WhiteElo "2665"]
[BlackElo "2262"]
[Result "1/2-1/2"]
[Round "8"]
[TimeControl "180+1"]
[Date "2023.10.31"]
[WhiteClock "0:01:29"]
[BlackClock "0:00:06"]
[Board "86"]

1. e4 {[%clk 0:03:00]}  e6 {[%clk 0:02:59]} 2. d4 {[%clk 0:02:59]}  d5 {[%clk 0:02:59]} 3. Nc3 {[%clk 0:02:59]}  Bb4 {[%clk 0:02:58]} 4. e5 {[%clk 0:02:59]}  Qd7 {[%clk 0:02:57]} 5. a3 {[%clk 0:02:58]}  Bxc3+ {[%clk 0:02:57]} 6. bxc3 {[%clk 0:02:59]}  b6 {[%clk 0:02:57]} 7. Qg4 {[%clk 0:02:48]}  f5 {[%clk 0:02:57]} 8. Qh5+ {[%clk 0:02:48]}  Qf7 {[%clk 0:02:57]} 9. Qf3 {[%clk 0:02:48]}  Ba6 {[%clk 0:02:56]} 10. Bxa6 {[%clk 0:02:47]}  Nxa6 {[%clk 0:02:56]} 11. a4 {[%clk 0:02:46]}  Nb8 {[%clk 0:02:49]} 12. a5 {[%clk 0:02:45]}  Nc6 {[%clk 0:02:48]} 13. axb6 {[%clk 0:02:44]}  cxb6 {[%clk 0:02:48]} 14. Nh3 {[%clk 0:02:42]}  h6 {[%clk 0:02:48]} 15. Nf4 {[%clk 0:02:41]}  g5 {[%clk 0:02:39]} 16. Nd3 {[%clk 0:02:40]}  Nge7 {[%clk 0:02:37]} 17. h4 {[%clk 0:02:40]}  g4 {[%clk 0:02:20]} 18. Qe3 {[%clk 0:02:39]}  Na5 {[%clk 0:02:20]} 19. h5 {[%clk 0:02:37]}  Nc4 {[%clk 0:02:20]} 20. Qg3 {[%clk 0:02:35]}  a5 {[%clk 0:02:18]} 21. Ba3 {[%clk 0:02:31]}  O-O-O {[%clk 0:02:12]} 22. Nf4 {[%clk 0:02:30]}  Rhg8 {[%clk 0:02:04]} 23. O-O {[%clk 0:02:29]}  Rg5 {[%clk 0:01:56]} 24. Rfb1 {[%clk 0:02:22]}  Nc6 {[%clk 0:01:54]} 25. Bc1 {[%clk 0:02:11]}  Rxh5 {[%clk 0:01:52]} 26. Nxh5 {[%clk 0:02:10]}  Qxh5 {[%clk 0:01:52]} 27. Qf4 {[%clk 0:02:08]}  Rh8 {[%clk 0:01:48]} 28. g3 {[%clk 0:02:07]}  Qg6 {[%clk 0:01:46]} 29. Kg2 {[%clk 0:02:07]}  h5 {[%clk 0:01:46]} 30. Be3 {[%clk 0:02:06]}  Kc7 {[%clk 0:01:42]} 31. Rh1 {[%clk 0:02:05]}  Ne7 {[%clk 0:01:26]} 32. Bc1 {[%clk 0:02:00]}  Qf7 {[%clk 0:01:15]} 33. Ba3 {[%clk 0:01:59]}  Ng6 {[%clk 0:01:14]} 34. Bd6+ {[%clk 0:01:57]}  Kc6 {[%clk 0:01:13]} 35. Qg5 {[%clk 0:01:55]}  f4 {[%clk 0:01:13]} 36. Rab1 {[%clk 0:01:47]}  fxg3 {[%clk 0:01:11]} 37. Qf6 {[%clk 0:01:42]}  Qxf6 {[%clk 0:01:01]} 38. exf6 {[%clk 0:01:41]}  Kxd6 {[%clk 0:01:01]} 39. fxg3 {[%clk 0:01:40]}  a4 {[%clk 0:00:49]} 40. Rbf1 {[%clk 0:01:39]}  a3 {[%clk 0:00:46]} 41. Rf2 {[%clk 0:01:39]}  h4 {[%clk 0:00:34]} 42. Re1 {[%clk 0:01:33]}  h3+ {[%clk 0:00:31]} 43. Kh2 {[%clk 0:01:34]}  a2 {[%clk 0:00:22]} 44. f7 {[%clk 0:01:30]}  Ra8 {[%clk 0:00:19]} 45. Ra1 {[%clk 0:01:29]}  Ke7 {[%clk 0:00:17]} 46. Kg1 {[%clk 0:01:18]}  Ne3 {[%clk 0:00:14]} 47. Re2 {[%clk 0:01:17]}  Nf5 {[%clk 0:00:13]} 48. Kf2 {[%clk 0:01:16]}  Kxf7 {[%clk 0:00:13]} 49. c4 {[%clk 0:01:14]}  Nxd4 {[%clk 0:00:12]} 50. Rd2 {[%clk 0:01:13]}  Nf3 {[%clk 0:00:12]} 51. Rd3 {[%clk 0:01:13]}  dxc4 {[%clk 0:00:11]} 52. Rd7+ {[%clk 0:01:13]}  Kf6 {[%clk 0:00:11]} 53. Rb7 {[%clk 0:01:14]}  h2 {[%clk 0:00:10]} 54. Rxb6 {[%clk 0:01:13]}  h1=Q {[%clk 0:00:10]} 55. Rxh1 {[%clk 0:01:14]}  a1=Q {[%clk 0:00:10]} 56. Rxa1 {[%clk 0:01:15]}  Rxa1 {[%clk 0:00:10]} 57. Ke3 {[%clk 0:01:15]}  Rg1 {[%clk 0:00:09]} 58. Ke4 {[%clk 0:01:15]}  Rxg3 {[%clk 0:00:09]} 59. c3 {[%clk 0:01:16]}  Ng5+ {[%clk 0:00:08]} 60. Kd4 {[%clk 0:01:16]}  Rf3 {[%clk 0:00:08]} 61. Kxc4 {[%clk 0:01:17]}  g3 {[%clk 0:00:08]} 62. Rb2 {[%clk 0:01:18]}  Rf2 {[%clk 0:00:08]} 63. Rb1 {[%clk 0:01:18]}  g2 {[%clk 0:00:08]} 64. Rg1 {[%clk 0:01:19]}  Nf3 {[%clk 0:00:08]} 65. Rxg2 {[%clk 0:01:20]}  Rxg2 {[%clk 0:00:09]} 66. Kd3 {[%clk 0:01:20]}  Rg3 {[%clk 0:00:08]} 67. Ke4 {[%clk 0:01:21]}  Nfe5 {[%clk 0:00:08]} 68. c4 {[%clk 0:01:22]}  Rc3 {[%clk 0:00:08]} 69. c5 {[%clk 0:01:23]}  Rxc5 {[%clk 0:00:08]} 70. Kd4 {[%clk 0:01:23]}  Rc4+ {[%clk 0:00:08]} 71. Ke3 {[%clk 0:01:23]}  Kf5 {[%clk 0:00:08]} 72. Kd2 {[%clk 0:01:24]}  Ke4 {[%clk 0:00:08]} 73. Ke2 {[%clk 0:01:25]}  Rc2+ {[%clk 0:00:08]} 74. Kd1 {[%clk 0:01:25]}  Kd3 {[%clk 0:00:08]} 75. Ke1 {[%clk 0:01:26]}  Rc3 {[%clk 0:00:07]} 76. Kd1 {[%clk 0:01:27]}  Rc4 {[%clk 0:00:06]} 77. Ke1 {[%clk 0:01:28]}  Nf3+ {[%clk 0:00:06]} 78. Kd1 {[%clk 0:01:29]}  Rc3 {[%clk 0:00:06]} 1/2-1/2


[Site "https://www.chess.com"]

[Event "Titled Tuesday Blitz October 31 Early 2023"]
[White "Kim, Sergey"]
[Black "Matveeva, Olga"]
[WhiteFideId "13700570"]
[BlackFideId "24107018"]
[WhiteElo "2593"]
[BlackElo "2407"]
[Result "0-1"]
[Round "8"]
[TimeControl "180+1"]
[Date "2023.10.31"]
[WhiteClock "0:00:07"]
[BlackClock "0:00:15"]
[Board "88"]

1. d4 {[%clk 0:03:00]}  d5 {[%clk 0:02:59]} 2. c4 {[%clk 0:03:00]}  e6 {[%clk 0:02:59]} 3. Nc3 {[%clk 0:03:01]}  Nf6 {[%clk 0:02:59]} 4. Nf3 {[%clk 0:03:00]}  Be7 {[%clk 0:02:58]} 5. Bf4 {[%clk 0:03:00]}  O-O {[%clk 0:02:58]} 6. e3 {[%clk 0:03:00]}  a6 {[%clk 0:02:43]} 7. c5 {[%clk 0:03:00]}  b6 {[%clk 0:02:38]} 8. b4 {[%clk 0:02:59]}  a5 {[%clk 0:02:36]} 9. a3 {[%clk 0:02:59]}  axb4 {[%clk 0:02:29]} 10. axb4 {[%clk 0:02:59]}  Rxa1 {[%clk 0:02:28]} 11. Qxa1 {[%clk 0:02:58]}  bxc5 {[%clk 0:02:27]} 12. bxc5 {[%clk 0:02:57]}  Nc6 {[%clk 0:02:25]} 13. Bb5 {[%clk 0:02:52]}  Nb4 {[%clk 0:02:21]} 14. O-O {[%clk 0:02:49]}  c6 {[%clk 0:02:21]} 15. Be2 {[%clk 0:02:46]}  Ne4 {[%clk 0:02:17]} 16. Nxe4 {[%clk 0:02:35]}  dxe4 {[%clk 0:02:18]} 17. Ne5 {[%clk 0:02:30]}  f6 {[%clk 0:02:14]} 18. Nc4 {[%clk 0:02:28]}  Nd5 {[%clk 0:01:54]} 19. Bd6 {[%clk 0:02:24]}  Bd7 {[%clk 0:01:38]} 20. Bxe7 {[%clk 0:02:05]}  Qxe7 {[%clk 0:01:39]} 21. Nd6 {[%clk 0:02:05]}  e5 {[%clk 0:01:24]} 22. Bc4 {[%clk 0:02:03]}  Kh8 {[%clk 0:01:22]} 23. Bxd5 {[%clk 0:01:59]}  cxd5 {[%clk 0:01:21]} 24. dxe5 {[%clk 0:01:43]}  fxe5 {[%clk 0:01:17]} 25. Qd1 {[%clk 0:01:32]}  Bc6 {[%clk 0:01:16]} 26. Qg4 {[%clk 0:01:28]}  d4 {[%clk 0:01:07]} 27. h4 {[%clk 0:01:05]}  h6 {[%clk 0:00:31]} 28. Rd1 {[%clk 0:00:46]}  Qa7 {[%clk 0:00:21]} 29. Rc1 {[%clk 0:00:22]}  Qa3 {[%clk 0:00:19]} 30. Qd1 {[%clk 0:00:14]}  dxe3 {[%clk 0:00:18]} 31. fxe3 {[%clk 0:00:14]}  Qxe3+ {[%clk 0:00:19]} 32. Kh1 {[%clk 0:00:14]}  Qg3 {[%clk 0:00:18]} 33. Qh5 {[%clk 0:00:10]}  e3 {[%clk 0:00:16]} 34. Nf5 {[%clk 0:00:07]}  Qxg2# {[%clk 0:00:15]} 0-1


[Site "https://www.chess.com"]

[Event "Titled Tuesday Blitz October 31 Early 2023"]
[White "Hoffmann, Asa"]
[Black "Ezat, Mohamed"]
[WhiteFideId "2001470"]
[BlackFideId "10600906"]
[WhiteElo "2393"]
[BlackElo "2572"]
[Result "1/2-1/2"]
[Round "8"]
[TimeControl "180+1"]
[Date "2023.10.31"]
[WhiteClock "0:00:13"]
[BlackClock "0:00:18"]
[Board "91"]

1. d4 {[%clk 0:02:56]}  Nf6 {[%clk 0:02:58]} 2. Bg5 {[%clk 0:02:54]}  c5 {[%clk 0:02:57]} 3. d5 {[%clk 0:02:54]}  Qb6 {[%clk 0:02:55]} 4. Nc3 {[%clk 0:02:53]}  Qxb2 {[%clk 0:02:54]} 5. Bd2 {[%clk 0:02:53]}  Qb6 {[%clk 0:02:54]} 6. e4 {[%clk 0:02:53]}  d6 {[%clk 0:02:54]} 7. f4 {[%clk 0:02:52]}  Bg4 {[%clk 0:02:52]} 8. Be2 {[%clk 0:02:51]}  Bxe2 {[%clk 0:02:44]} 9. Qxe2 {[%clk 0:02:51]}  Qd8 {[%clk 0:02:37]} 10. Rb1 {[%clk 0:02:45]}  b6 {[%clk 0:02:32]} 11. Nf3 {[%clk 0:02:43]}  g6 {[%clk 0:02:26]} 12. e5 {[%clk 0:02:27]}  Ng8 {[%clk 0:02:10]} 13. exd6 {[%clk 0:02:02]}  Qxd6 {[%clk 0:02:08]} 14. Nb5 {[%clk 0:02:02]}  Qd7 {[%clk 0:02:07]} 15. Bc3 {[%clk 0:01:58]}  f6 {[%clk 0:02:04]} 16. d6 {[%clk 0:01:55]}  Na6 {[%clk 0:02:03]} 17. O-O {[%clk 0:01:49]}  Kf7 {[%clk 0:02:03]} 18. Ne5+ {[%clk 0:01:40]}  fxe5 {[%clk 0:02:01]} 19. fxe5+ {[%clk 0:01:40]}  Nf6 {[%clk 0:01:54]} 20. exf6 {[%clk 0:01:26]}  exd6 {[%clk 0:01:53]} 21. Rbd1 {[%clk 0:01:20]}  d5 {[%clk 0:01:51]} 22. Qf3 {[%clk 0:01:08]}  Rd8 {[%clk 0:01:48]} 23. a4 {[%clk 0:01:05]}  d4 {[%clk 0:01:43]} 24. Bd2 {[%clk 0:01:02]}  Qd5 {[%clk 0:01:29]} 25. Qg3 {[%clk 0:00:58]}  Bd6 {[%clk 0:01:27]} 26. Bf4 {[%clk 0:00:57]}  Bxf4 {[%clk 0:01:24]} 27. Qxf4 {[%clk 0:00:56]}  Rd7 {[%clk 0:01:18]} 28. Qh6 {[%clk 0:00:56]}  Ke8 {[%clk 0:01:11]} 29. Rde1+ {[%clk 0:00:54]}  Kd8 {[%clk 0:01:11]} 30. c4 {[%clk 0:00:43]}  dxc3 {[%clk 0:01:07]} 31. Nxc3 {[%clk 0:00:35]}  Qd4+ {[%clk 0:01:07]} 32. Kh1 {[%clk 0:00:34]}  Re8 {[%clk 0:00:54]} 33. Rd1 {[%clk 0:00:30]}  Qxc3 {[%clk 0:00:34]} 34. Rxd7+ {[%clk 0:00:29]}  Kxd7 {[%clk 0:00:34]} 35. f7 {[%clk 0:00:29]}  Nc7 {[%clk 0:00:33]} 36. fxe8=Q+ {[%clk 0:00:26]}  Nxe8 {[%clk 0:00:32]} 37. Qxh7+ {[%clk 0:00:26]}  Kc6 {[%clk 0:00:26]} 38. Qxg6+ {[%clk 0:00:26]}  Nd6 {[%clk 0:00:27]} 39. Rd1 {[%clk 0:00:25]}  Qe5 {[%clk 0:00:25]} 40. h4 {[%clk 0:00:24]}  c4 {[%clk 0:00:25]} 41. h5 {[%clk 0:00:24]}  c3 {[%clk 0:00:25]} 42. h6 {[%clk 0:00:22]}  Kc5 {[%clk 0:00:25]} 43. h7 {[%clk 0:00:21]}  Ne4 {[%clk 0:00:20]} 44. Qxe4 {[%clk 0:00:15]}  Qh5+ {[%clk 0:00:20]} 45. Kg1 {[%clk 0:00:13]}  Qxd1+ {[%clk 0:00:20]} 46. Kh2 {[%clk 0:00:13]}  Qh5+ {[%clk 0:00:20]} 47. Kg1 {[%clk 0:00:13]}  Qd1+ {[%clk 0:00:19]} 48. Kh2 {[%clk 0:00:13]}  Qh5+ {[%clk 0:00:19]} 49. Kg1 {[%clk 0:00:13]}  Qd1+ {[%clk 0:00:18]} 1/2-1/2


[Site "https://www.chess.com"]

[Event "Titled Tuesday Blitz October 31 Early 2023"]
[White "Golubev, Mikhail"]
[Black "Dmitrenko, Viktor"]
[WhiteFideId "14100983"]
[BlackFideId "14110270"]
[WhiteElo "2547"]
[BlackElo "2375"]
[Result "1-0"]
[Round "8"]
[TimeControl "180+1"]
[Date "2023.10.31"]
[WhiteClock "0:00:04"]
[BlackClock "0:00:02"]
[Board "93"]

1. e4 {[%clk 0:03:00]}  c5 {[%clk 0:02:59]} 2. Ne2 {[%clk 0:03:00]}  Nc6 {[%clk 0:02:55]} 3. Nbc3 {[%clk 0:02:59]}  Nf6 {[%clk 0:02:47]} 4. d4 {[%clk 0:02:56]}  cxd4 {[%clk 0:02:47]} 5. Nxd4 {[%clk 0:02:57]}  e5 {[%clk 0:02:46]} 6. Ndb5 {[%clk 0:02:56]}  d6 {[%clk 0:02:46]} 7. Bg5 {[%clk 0:02:56]}  a6 {[%clk 0:02:46]} 8. Na3 {[%clk 0:02:54]}  b5 {[%clk 0:02:44]} 9. Bxf6 {[%clk 0:02:54]}  gxf6 {[%clk 0:02:42]} 10. Nd5 {[%clk 0:02:55]}  Bg7 {[%clk 0:02:40]} 11. c3 {[%clk 0:02:55]}  Ne7 {[%clk 0:02:39]} 12. Nc2 {[%clk 0:02:42]}  Be6 {[%clk 0:02:14]} 13. Nxe7 {[%clk 0:02:37]}  Qxe7 {[%clk 0:02:13]} 14. Ne3 {[%clk 0:02:36]}  O-O {[%clk 0:02:12]} 15. Bd3 {[%clk 0:02:28]}  Rac8 {[%clk 0:02:06]} 16. O-O {[%clk 0:02:24]}  Kh8 {[%clk 0:02:03]} 17. Qh5 {[%clk 0:02:15]}  Rg8 {[%clk 0:01:05]} 18. a4 {[%clk 0:02:04]}  bxa4 {[%clk 0:00:47]} 19. Rxa4 {[%clk 0:02:05]}  Rb8 {[%clk 0:00:47]} 20. b4 {[%clk 0:02:03]}  Qc7 {[%clk 0:00:37]} 21. Nd5 {[%clk 0:01:57]}  Qd8 {[%clk 0:00:13]} 22. Rxa6 {[%clk 0:01:52]}  Rc8 {[%clk 0:00:12]} 23. c4 {[%clk 0:01:43]}  Qf8 {[%clk 0:00:10]} 24. b5 {[%clk 0:01:38]}  Bxd5 {[%clk 0:00:07]} 25. exd5 {[%clk 0:01:36]}  Bh6 {[%clk 0:00:08]} 26. Ra7 {[%clk 0:01:27]}  Rg7 {[%clk 0:00:06]} 27. Kh1 {[%clk 0:01:11]}  Bg5 {[%clk 0:00:04]} 28. Bf5 {[%clk 0:01:06]}  Rxc4 {[%clk 0:00:03]} 29. Rfa1 {[%clk 0:00:33]}  Rh4 {[%clk 0:00:03]} 30. Qe2 {[%clk 0:00:10]}  Rg8 {[%clk 0:00:02]} 31. b6 {[%clk 0:00:08]}  Qh6 {[%clk 0:00:02]} 32. h3 {[%clk 0:00:07]}  Rxh3+ {[%clk 0:00:03]} 33. Bxh3 {[%clk 0:00:06]}  Bf4 {[%clk 0:00:04]} 34. Ra8 {[%clk 0:00:06]}  Qg7 {[%clk 0:00:03]} 35. Rxg8+ {[%clk 0:00:05]}  Qxg8 {[%clk 0:00:04]} 36. Kg1 {[%clk 0:00:05]}  Qb8 {[%clk 0:00:04]} 37. Rb1 {[%clk 0:00:05]}  Qb7 {[%clk 0:00:04]} 38. Kh1 {[%clk 0:00:05]}  Qxd5 {[%clk 0:00:04]} 39. Kg1 {[%clk 0:00:04]}  Qb7 {[%clk 0:00:04]} 40. Bf5 {[%clk 0:00:04]}  Kg7 {[%clk 0:00:04]} 41. Qf3 {[%clk 0:00:04]}  h6 {[%clk 0:00:02]} 42. Qxb7 {[%clk 0:00:04]} 1-0


[Site "https://www.chess.com"]

[Event "Titled Tuesday Blitz October 31 Early 2023"]
[White "LeoLV10"]
[Black "secrethawk1"]
[WhiteElo "2545"]
[BlackElo "2360"]
[Result "0-1"]
[Round "8"]
[TimeControl "180+1"]
[Date "2023.10.31"]
[WhiteClock "0:00:10"]
[BlackClock "0:00:38"]
[Board "94"]

1. e4 {[%clk 0:03:00]}  c6 {[%clk 0:02:57]} 2. d4 {[%clk 0:03:00]}  d5 {[%clk 0:02:54]} 3. e5 {[%clk 0:03:00]}  Bf5 {[%clk 0:02:53]} 4. h4 {[%clk 0:03:00]}  h5 {[%clk 0:02:53]} 5. Bd3 {[%clk 0:03:00]}  Bxd3 {[%clk 0:02:54]} 6. Qxd3 {[%clk 0:03:01]}  e6 {[%clk 0:02:54]} 7. Nf3 {[%clk 0:02:57]}  c5 {[%clk 0:02:53]} 8. c3 {[%clk 0:02:57]}  Nc6 {[%clk 0:02:53]} 9. a3 {[%clk 0:02:52]}  Nh6 {[%clk 0:02:48]} 10. b4 {[%clk 0:02:51]}  cxd4 {[%clk 0:02:46]} 11. cxd4 {[%clk 0:02:51]}  Nf5 {[%clk 0:02:46]} 12. Nc3 {[%clk 0:02:50]}  Qb6 {[%clk 0:02:45]} 13. Na4 {[%clk 0:02:46]}  Qd8 {[%clk 0:02:42]} 14. Bb2 {[%clk 0:02:41]}  Be7 {[%clk 0:02:40]} 15. g3 {[%clk 0:02:40]}  O-O {[%clk 0:02:39]} 16. O-O {[%clk 0:02:37]}  g6 {[%clk 0:02:37]} 17. Rac1 {[%clk 0:02:35]}  a6 {[%clk 0:02:35]} 18. Rc2 {[%clk 0:02:32]}  Rc8 {[%clk 0:02:34]} 19. Rfc1 {[%clk 0:02:31]}  f6 {[%clk 0:02:15]} 20. exf6 {[%clk 0:02:24]}  Bxf6 {[%clk 0:02:16]} 21. Nc5 {[%clk 0:02:24]}  Qe7 {[%clk 0:02:14]} 22. Re2 {[%clk 0:02:21]}  Ng7 {[%clk 0:02:09]} 23. Rce1 {[%clk 0:02:15]}  Rce8 {[%clk 0:02:00]} 24. Qxg6 {[%clk 0:02:08]}  Kh8 {[%clk 0:01:49]} 25. Kg2 {[%clk 0:01:49]}  Qd6 {[%clk 0:01:42]} 26. Ng5 {[%clk 0:01:27]}  Bxg5 {[%clk 0:01:40]} 27. hxg5 {[%clk 0:01:28]}  Rf5 {[%clk 0:01:24]} 28. Nxe6 {[%clk 0:01:20]}  Re7 {[%clk 0:01:12]} 29. Nxg7 {[%clk 0:01:15]}  Qxg6 {[%clk 0:01:11]} 30. Nxf5 {[%clk 0:00:58]}  Rxe2 {[%clk 0:01:10]} 31. Rxe2 {[%clk 0:00:51]}  Qxf5 {[%clk 0:01:10]} 32. Bc1 {[%clk 0:00:44]}  Kg7 {[%clk 0:01:06]} 33. Bf4 {[%clk 0:00:43]}  Qd3 {[%clk 0:00:52]} 34. Rd2 {[%clk 0:00:42]}  Qe4+ {[%clk 0:00:49]} 35. f3 {[%clk 0:00:42]}  Qf5 {[%clk 0:00:46]} 36. Re2 {[%clk 0:00:41]}  Qd3 {[%clk 0:00:46]} 37. Ra2 {[%clk 0:00:34]}  Qxd4 {[%clk 0:00:45]} 38. Rc2 {[%clk 0:00:28]}  Qd3 {[%clk 0:00:44]} 39. Rd2 {[%clk 0:00:22]}  Qc4 {[%clk 0:00:39]} 40. Re2 {[%clk 0:00:10]}  Qxe2+ {[%clk 0:00:38]} 0-1


[Site "https://www.chess.com"]

[Event "Titled Tuesday Blitz October 31 Early 2023"]
[White "Pinto, Daniel"]
[Black "Nekoo04"]
[WhiteFideId "3303144"]
[WhiteElo "2450"]
[BlackElo "2292"]
[Result "1-0"]
[Round "8"]
[TimeControl "180+1"]
[Date "2023.10.31"]
[WhiteClock "0:00:59"]
[BlackClock "0:00:00"]
[Board "102"]

1. Nf3 {[%clk 0:03:00]}  d5 {[%clk 0:02:59]} 2. g3 {[%clk 0:03:01]}  Nf6 {[%clk 0:02:59]} 3. Bg2 {[%clk 0:03:00]}  c5 {[%clk 0:02:52]} 4. O-O {[%clk 0:03:01]}  Nc6 {[%clk 0:02:53]} 5. c4 {[%clk 0:03:01]}  d4 {[%clk 0:02:53]} 6. d3 {[%clk 0:03:01]}  e5 {[%clk 0:02:53]} 7. e3 {[%clk 0:03:02]}  Be7 {[%clk 0:02:53]} 8. exd4 {[%clk 0:03:02]}  exd4 {[%clk 0:02:54]} 9. Re1 {[%clk 0:02:12]}  O-O {[%clk 0:02:53]} 10. Bf4 {[%clk 0:02:10]}  h6 {[%clk 0:02:31]} 11. Ne5 {[%clk 0:01:47]}  Nxe5 {[%clk 0:02:28]} 12. Bxe5 {[%clk 0:01:48]}  Bd6 {[%clk 0:02:28]} 13. Nd2 {[%clk 0:01:34]}  Bf5 {[%clk 0:02:11]} 14. Bxf6 {[%clk 0:01:14]}  Qxf6 {[%clk 0:02:10]} 15. Ne4 {[%clk 0:01:08]}  Bxe4 {[%clk 0:02:00]} 16. Bxe4 {[%clk 0:01:09]}  Rae8 {[%clk 0:00:00]} 17. b3 {[%clk 0:00:59]} 1-0


[Site "https://www.chess.com"]

[Event "Titled Tuesday Blitz October 31 Early 2023"]
[White "Kiseljova, Marya"]
[Black "Liu, Casper"]
[WhiteFideId "4155009"]
[BlackFideId "1454153"]
[WhiteElo "2241"]
[BlackElo "2444"]
[Result "0-1"]
[Round "8"]
[TimeControl "180+1"]
[Date "2023.10.31"]
[WhiteClock "0:00:21"]
[BlackClock "0:00:18"]
[Board "105"]

1. d4 {[%clk 0:03:00]}  Nf6 {[%clk 0:02:58]} 2. c4 {[%clk 0:03:00]}  g6 {[%clk 0:02:58]} 3. Nc3 {[%clk 0:02:59]}  Bg7 {[%clk 0:02:59]} 4. e4 {[%clk 0:02:59]}  O-O {[%clk 0:03:00]} 5. Be2 {[%clk 0:02:58]}  Nc6 {[%clk 0:02:57]} 6. d5 {[%clk 0:02:51]}  Nb8 {[%clk 0:02:57]} 7. e5 {[%clk 0:02:42]}  Ne8 {[%clk 0:02:57]} 8. Nf3 {[%clk 0:02:42]}  d6 {[%clk 0:02:57]} 9. Bf4 {[%clk 0:02:37]}  Nd7 {[%clk 0:02:55]} 10. exd6 {[%clk 0:02:31]}  Nxd6 {[%clk 0:02:54]} 11. O-O {[%clk 0:02:30]}  Nc5 {[%clk 0:02:46]} 12. Be3 {[%clk 0:02:21]}  Nce4 {[%clk 0:02:43]} 13. Nxe4 {[%clk 0:02:19]}  Nxe4 {[%clk 0:02:44]} 14. Qc2 {[%clk 0:02:18]}  Nd6 {[%clk 0:02:40]} 15. Rab1 {[%clk 0:02:12]}  e6 {[%clk 0:02:37]} 16. Rfd1 {[%clk 0:02:06]}  exd5 {[%clk 0:02:35]} 17. Rxd5 {[%clk 0:02:01]}  Be6 {[%clk 0:02:29]} 18. Rd2 {[%clk 0:02:00]}  Qe8 {[%clk 0:02:15]} 19. Bc5 {[%clk 0:01:49]}  Qc6 {[%clk 0:02:10]} 20. b4 {[%clk 0:01:24]}  Bf5 {[%clk 0:01:08]} 21. Bd3 {[%clk 0:01:12]}  Bxd3 {[%clk 0:01:08]} 22. Rxd3 {[%clk 0:01:04]}  Rad8 {[%clk 0:01:09]} 23. Rbd1 {[%clk 0:01:03]}  Rfe8 {[%clk 0:01:00]} 24. h3 {[%clk 0:00:55]}  b6 {[%clk 0:00:44]} 25. Bxd6 {[%clk 0:00:54]}  cxd6 {[%clk 0:00:45]} 26. Nd4 {[%clk 0:00:51]}  Qe4 {[%clk 0:00:40]} 27. Nb5 {[%clk 0:00:47]}  Be5 {[%clk 0:00:34]} 28. R3d2 {[%clk 0:00:37]}  Bf4 {[%clk 0:00:32]} 29. Qxe4 {[%clk 0:00:36]}  Rxe4 {[%clk 0:00:28]} 30. Rd4 {[%clk 0:00:36]}  Rde8 {[%clk 0:00:20]} 31. Nxd6 {[%clk 0:00:28]}  Re1+ {[%clk 0:00:20]} 32. Rxe1 {[%clk 0:00:21]}  Rxe1# {[%clk 0:00:18]} 0-1


[Site "https://www.chess.com"]

[Event "Titled Tuesday Blitz October 31 Early 2023"]
[White "crazy_m_attack"]
[Black "Gurevich, Dmitry"]
[BlackFideId "2000407"]
[WhiteElo "2418"]
[BlackElo "2536"]
[Result "1-0"]
[Round "8"]
[TimeControl "180+1"]
[Date "2023.10.31"]
[WhiteClock "0:00:02"]
[BlackClock "0:00:00"]
[Board "110"]

1. e4 {[%clk 0:03:00]}  c5 {[%clk 0:02:59]} 2. Nf3 {[%clk 0:03:01]}  d6 {[%clk 0:02:59]} 3. d4 {[%clk 0:03:01]}  cxd4 {[%clk 0:02:59]} 4. Nxd4 {[%clk 0:03:02]}  Nf6 {[%clk 0:02:58]} 5. Nc3 {[%clk 0:03:02]}  Nc6 {[%clk 0:02:58]} 6. Be2 {[%clk 0:03:03]}  g6 {[%clk 0:02:57]} 7. Be3 {[%clk 0:03:03]}  Bg7 {[%clk 0:02:56]} 8. O-O {[%clk 0:03:03]}  O-O {[%clk 0:02:56]} 9. Nb3 {[%clk 0:03:03]}  a6 {[%clk 0:02:54]} 10. a4 {[%clk 0:03:03]}  Be6 {[%clk 0:02:53]} 11. f4 {[%clk 0:03:03]}  Rc8 {[%clk 0:02:50]} 12. Kh1 {[%clk 0:02:59]}  Na5 {[%clk 0:02:43]} 13. Nxa5 {[%clk 0:02:30]}  Qxa5 {[%clk 0:02:41]} 14. Bd4 {[%clk 0:02:29]}  Bc4 {[%clk 0:02:30]} 15. Bd3 {[%clk 0:02:04]}  e5 {[%clk 0:02:21]} 16. Be3 {[%clk 0:02:00]}  Rfe8 {[%clk 0:02:03]} 17. f5 {[%clk 0:01:58]}  Qb4 {[%clk 0:01:04]} 18. Qd2 {[%clk 0:01:37]}  Bxd3 {[%clk 0:00:55]} 19. cxd3 {[%clk 0:01:37]}  d5 {[%clk 0:00:44]} 20. exd5 {[%clk 0:01:13]}  Red8 {[%clk 0:00:10]} 21. Bg5 {[%clk 0:01:05]}  Rd6 {[%clk 0:00:05]} 22. fxg6 {[%clk 0:00:42]}  hxg6 {[%clk 0:00:03]} 23. Qf2 {[%clk 0:00:42]}  Qd4 {[%clk 0:00:01]} 24. Bxf6 {[%clk 0:00:12]}  Qxf2 {[%clk 0:00:01]} 25. Rxf2 {[%clk 0:00:12]}  Rxf6 {[%clk 0:00:01]} 26. Rxf6 {[%clk 0:00:10]}  Bxf6 {[%clk 0:00:02]} 27. Re1 {[%clk 0:00:10]}  Bd8 {[%clk 0:00:02]} 28. Rxe5 {[%clk 0:00:09]}  Bc7 {[%clk 0:00:03]} 29. Re7 {[%clk 0:00:08]}  Ba5 {[%clk 0:00:04]} 30. d6 {[%clk 0:00:03]}  Bxc3 {[%clk 0:00:03]} 31. d7 {[%clk 0:00:04]}  Rf8 {[%clk 0:00:00]} 32. bxc3 {[%clk 0:00:02]} 1-0


[Site "https://www.chess.com"]